Cogmind - Beta 13 @@@ ROGUE MODE // 2024.05.29 @ 16:10:06 Player: trisiak Result: Destroyed by 1Y-NJZ(R) with Subdweller Machine Gun Performance ------------- Evolutions (0) 0 Regions Visited (3) 600 Robots Destroyed (26) 130 Value Destroyed (512) 512 Prototype IDs (3) 60 Alien Tech Used (0) 0 Bonus (-13) -13 TOTAL SCORE: 1289 Bonus ------- Friendly Fire -13 Cogmind --------- Core Integrity 0/250 Matter 227/300 Energy 250/250 System Corruption 1% Temperature Cool (6) Movement Rolling (145) Ox3 Location -10/Subcaves Parts ------- > --- POWER (1) -------- Ion Engine > --- PROPULSION (2) --- Light Treads Compact Wheel > --- UTILITY (2) ------ High-capacity Storage Unit Splice Drone Bay (3/6) > --- WEAPON (2) ------- Light Assault Rifle Grenade Launcher > --- INVENTORY (20) --- Ion Engine Light Ion Engine Light Treads Large Storage Unit Large Storage Unit High-capacity Matter Pod (0) Structural Scanner Signal Interpreter Improved Terrain Scanner Seismic Detector ECM Suite Light Assault Rifle Light Assault Rifle Light Assault Rifle Grenade Launcher Peak State ------------ > --- POWER ------------ Ion Engine > --- PROPULSION ------- Light Treads Compact Wheel > --- UTILITY ---------- High-capacity Storage Unit Splice Drone Bay > --- WEAPON ----------- Light Assault Rifle Light Assault Rifle > --- INVENTORY -------- Ion Engine Light Ion Engine Light Treads Large Storage Unit Large Storage Unit High-capacity Matter Pod Structural Scanner Signal Interpreter Improved Terrain Scanner Seismic Detector ECM Suite Light Assault Rifle Light Assault Rifle Grenade Launcher Grenade Launcher [Rating: 14] Favorites ----------- Power Ion Engine Engine Ion Engine Propulsion Light Treads Treads Light Treads Leg Aluminum Leg Wheel Compact Wheel Utility Seismic Detector Device Seismic Detector Storage Medium Storage Unit Weapon Light Assault Rifle Energy Gun Medium Laser Ballistic Gun Light Assault Rifle Launcher Grenade Launcher Build | -11 -10 -10 -10 ------- Run | Yrd Mat Min Sub Slots Evolved . | . . . . Power . | . . . . Propulsion . | . . . . Utility . | . . . . Weapon . | . . . . Parts Attached 27 | 2 19 5 1 Power . | . . . . Engine . | . . . . Core . | . . . . Reactor . | . . . . Propulsion 3 | . 3 . . Treads 2 | . 2 . . Leg . | . . . . Wheel 1 | . 1 . . Hover . | . . . . Flight . | . . . . Utility 9 | 1 6 2 . Device 6 | 1 3 2 . Storage 3 | . 3 . . Processor . | . . . . Hackware . | . . . . Protection . | . . . . Artifact . | . . . . Weapon 15 | 1 10 3 1 Energy Gun . | . . . . Energy Cannon . | . . . . Ballistic Gun 9 | 1 6 2 . Ballistic Cannon . | . . . . Launcher 6 | . 4 1 1 Special Weapon . | . . . . Impact Weapon . | . . . . Slashing Weapon . | . . . . Piercing Weapon . | . . . . Special Melee Weapon . | . . . . Unidentified Prototypes 1 | . . 1 . Parts Lost 1 | . 1 . . Power . | . . . . Propulsion . | . . . . Utility 1 | . 1 . . Weapon . | . . . . Highest Loss Streak 1 | . 1 . . To Critical Strikes . | . . . . Average Slot Usage (%) 99 | . 99 100 100 Engine 14 | . 14 14 14 Treads 18 | . 21 14 14 Leg 4 | . 6 . . Wheel 5 | . . 14 14 Device 13 | . 13 14 14 Storage 14 | . 14 14 14 Ballistic Gun 25 | . 25 23 26 Launcher 2 | . 2 4 1 Naked Turns . | . . . . Heaviest Build 55 | 14 50 55 55 Greatest Support 40 | 20 40 16 16 Greatest Overweight (x) 3 | . 3 3 3 Average Overweight (x) . | . . 2 3 Largest Inventory Capacity 20 | 8 20 20 20 Average Capacity 14 | 8 11 20 20 Most Carried 15 | 7 14 15 15 Average Carried 11 | 6 10 13 15 Final Capacity 20 | 8 20 20 20 Final Carried 15 | 7 13 15 15 Class Distribution -------------------- 100% | Mutant Dominant Class ---------------- Mutant | -10/Materials Mutant | -10/Mines Mutant | -10/Subcaves Resources | -11 -10 -10 -10 ----------- Run | Yrd Mat Min Sub Matter Collected 735 | 278 346 48 63 Remotely . | . . . . Salvage Created 661 | 83 461 48 69 Parts 54 | 5 37 6 6 Haulers Intercepted 2 | . 2 . . Recyclers Shooed 1 | . . 1 . Parts Field Recycled . | . . . . Retrieved Matter . | . . . . Parts Self-Destructed . | . . . . Prevented . | . . . . Kills | -11 -10 -10 -10 ------- Run | Yrd Mat Min Sub Combat Hostiles Destroyed 16 | . 14 . 2 Guns 5 | . 5 . . AOE 11 | . 9 . 2 Classes Destroyed 7 | 2 4 . 1 Tunneler 5 | 2 1 2 . Hauler 2 | . 2 . . Recycler 1 | 1 . . . Watcher 2 | . 2 . . Swarmer 6 | . 6 . . Grunt 8 | . 8 . . Subdweller 2 | . . . 2 Best Kill Streak 8 | 2 8 1 2 Combat Bots Only 7 | . 7 . 2 Max Kills in Single Turn 3 | 1 3 1 1 Gunslinging . | . . . . Exploded 3 | . 3 . 1 Melee . | . . . . Uniques/NPCs Destroyed . | . . . . Combat | -11 -10 -10 -10 -------- Run | Yrd Mat Min Sub Hostile Shots Fired 68 | . 62 . 6 Missed 19 | . 18 . 1 Damage Taken 796 | . 627 16 153 Core 258 | . 171 . 87 Absorbed by Shields . | . . . . Regen/Repaired (Parts) 17 | . 17 . . Core Remaining (%) 100 | 100 . . . Volleys Fired 88 | 15 58 13 2 Largest 2 | 2 2 2 1 Hottest 40 | 40 40 40 30 Shots Fired 163 | 30 108 23 2 Gun 151 | 30 101 20 . Cannon . | . . . . Launcher 12 | . 7 3 2 Special . | . . . . Kinetic 151 | 30 101 20 . Thermal . | . . . . Explosive 12 | . 7 3 2 Electromagnetic . | . . . . Robot Hit Streak 7 | 5 6 7 5 Robot Miss Streak 3 | 2 3 2 . Penetration Max . | . . . . Secondary Targets . | . . . . Shots Hit Robots 100 | 18 66 14 2 Core Hits 53 | 6 36 6 5 Critical Kills . | . . . . Critical Parts Destroyed 2 | . 2 . . Critical Strikes 2 | . 2 . . Destroy 2 | . 2 . . Melee Attacks . | . . . . Impact . | . . . . Slashing . | . . . . Piercing . | . . . . Sneak Attacks . | . . . . Combat Hostiles . | . . . . Follow-up Attacks . | . . . . Damage Inflicted 1592 | 201 1144 94 153 Guns 837 | 200 543 94 . Cannons . | . . . . Explosions 754 | . 601 . 153 Melee . | . . . . Ramming 1 | 1 . . . Kinetic 837 | 200 543 94 . Thermal . | . . . . Explosive 754 | . 601 . 153 Electromagnetic . | . . . . Impact . | . . . . Slashing . | . . . . Piercing . | . . . . Highest Corruption 1 | . 1 1 1 Average Corruption 1 | . 1 1 1 Corruption Purged . | . . . . Corruption Blocked . | . . . . Effects 15 | . 12 2 1 Message Errors 6 | . 3 2 1 Matter Fused 2 | . 2 . . Heat Flow Errors 2 | . 2 . . Energy Discharges 1 | . 1 . . Parts Fused 1 | . 1 . . Data Loss (minor) 1 | . 1 . . Alerts 1 | . 1 . . Weapon Failures 1 | . 1 . . Overload Shots . | . . . . Overflow Damage . | . . . . Projectiles . | . . . . Explosions . | . . . . Melee . | . . . . Knockbacks . | . . . . Impact . | . . . . Kinetic . | . . . . Secondary . | . . . . Self-Inflicted Damage 138 | . 72 17 49 Shots 5 | . 2 1 2 Rammed . | . . . . Targets Rammed 1 | 1 . . . Kicked 1 | 1 . . . Crushed . | . . . . Highest Temperature 144 | . 144 . . Average Temperature 34 | . 34 . . Received Heat Transfer 282 | . 276 . 6 Siege Activations . | . . . . Robots Corrupted . | . . . . Combat Hostiles . | . . . . Parts Fried . | . . . . Impact Corruptions . | . . . . Robots Melted . | . . . . Combat Hostiles . | . . . . Parts Melted . | . . . . Heat Transferred . | . . . . Parts Sabotaged . | . . . . Parts Stolen . | . . . . Parts Stripped . | . . . . Power Chain Reactions . | . . . . Alert | -11 -10 -10 -10 ------- Run | Yrd Mat Min Sub Peak Influence 318 | 15 318 34 . Initial 14 | . 9 14 . Average 95 | 7 139 12 . Maximum Alert Level 1 | . 1 . . Low Security (%) 84 | 100 76 100 . Level 1 15 | . 23 . . Level 2 . | . . . . Level 3 . | . . . . Level 4 . | . . . . Level 5 . | . . . . High Security . | . . . . Max Security . | . . . . Squads Dispatched 5 | . 5 . . Investigation 5 | . 5 . . Extermination . | . . . . Reinforcement . | . . . . Assault . | . . . . Garrison . | . . . . Intercept . | . . . . Searches Triggered . | . . . . Construction Impeded . | . . . . Haulers Reinforced . | . . . . Active Scanning Responses . | . . . . Cargo Convoy Interrupts . | . . . . Stealth | -11 -10 -10 -10 --------- Run | Yrd Mat Min Sub Distress Signals 2 | . 2 . . Communications Jammed . | . . . . Distress Signals . | . . . . Times Spotted 25 | . 21 . 4 Peak Tracking Total 10 | . 10 . 3 Tactical Retreats 1 | . 1 . . Traps | -11 -10 -10 -10 ------- Run | Yrd Mat Min Sub Traps Triggered 3 | . 3 . . Indirectly . | . . . . Trap Hack Attempts . | . . . . Triggered . | . . . . Disarmed . | . . . . Reprogrammed . | . . . . Reused . | . . . . Traps Extracted . | . . . . Installed . | . . . . Triggered . | . . . . Machines | -11 -10 -10 -10 ---------- Run | Yrd Mat Min Sub Machines Disabled 1 | . 1 . . Max in Single Turn 1 | . 1 . . Machines Repaired . | . . . . Machines Dismantled . | . . . . Machines Sabotaged . | . . . . Overloaded Fab Kills . | . . . . Hacking | -11 -10 -10 -10 --------- Run | Yrd Mat Min Sub Machines Accessed 9 | . 8 1 . Terminals 6 | . 6 . . Fabricators . | . . . . Repair Stations 1 | . 1 . . Recycling Units 1 | . 1 . . Scanalyzers . | . . . . Garrison Access . | . . . . Total Hacks 24 | . 23 1 . Successful 13 | . 12 1 . Failed 11 | . 11 . . Catastrophic 2 | . 2 . . Database Lockouts . | . . . . Manual 17 | . 17 . . Terminals 20 | . 20 . . Fabricators . | . . . . Repair Stations 2 | . 2 . . Recycling Units 1 | . 1 . . Scanalyzers . | . . . . Garrison Access . | . . . . Terminal Hacks 8 | . 7 1 . Robot Analysis 2 | . 2 . . Prototype ID Bank 1 | . 1 . . Open Door 1 | . . 1 . Branch Access Points 1 | . 1 . . Unreport Threat 1 | . 1 . . Transport Status 1 | . 1 . . Zone Layout 1 | . 1 . . Fabricator Hacks . | . . . . Repair Station Hacks 2 | . 2 . . Scan Component 1 | . 1 . . Repair 1 | . 1 . . Recycling Unit Hacks 1 | . 1 . . Report Inventory 1 | . 1 . . Scanalyzer . | . . . . Garrison Access Hacks . | . . . . Unauthorized Hacks 2 | . 2 . . Terminals 2 | . 2 . . Botnet 2 | . 2 . . Fabricators . | . . . . Repair Stations . | . . . . Recycling Units . | . . . . Scanalyzers . | . . . . Garrison Access . | . . . . Data Cores Recovered . | . . . . Used . | . . . . Hacking Detections 6 | . 6 . . Full Trace Events 4 | . 4 . . Feedback Events 1 | . 1 . . Corruption 1 | . 1 . . Feedback Blocked . | . . . . Robot Schematics Acquired . | . . . . Robots Built . | . . . . Authchips . | . . . . Time . | . . . . Total Robot Build Rating . | . . . . Part Schematics Acquired . | . . . . Parts Built . | . . . . Authchips . | . . . . Time . | . . . . Total Part Build Rating . | . . . . Parts Repaired 1 | . 1 . . Time 38 | . 38 . . Parts Recycled . | . . . . Recycled Matter . | . . . . Retrieved Matter . | . . . . Retrieved Components . | . . . . Parts Scanalyzed . | . . . . Part Schematics Acquired . | . . . . Parts Damaged . | . . . . Bothacking | -11 -10 -10 -10 ------------ Run | Yrd Mat Min Sub Used RIF Installer . | . . . . Robots Hacked . | . . . . Non-combat . | . . . . Combat . | . . . . Robot Hacks Applied . | . . . . Relay Couplers Released . | . . . . Fabnet Peak Effective % . | . . . . Robots Rewired . | . . . . Allies Hacked . | . . . . Hacks Repelled . | . . . . Allies | -11 -10 -10 -10 -------- Run | Yrd Mat Min Sub Total Allies . | . . . . Largest Group . | . . . . Highest-Rated Group . | . . . . Highest-Rated Ally . | . . . . Total Orders 7 | . . . 7 ROAM 1 | . . . 1 FOLLOW 2 | . . . 2 EXPLORE 3 | . . . 3 RETURN 1 | . . . 1 Ally Attacks 4 | . . . 4 Total Damage 23 | . . . 23 Kills . | . . . . Allies Corrupted . | . . . . Allies Melted . | . . . . Intel | -11 -10 -10 -10 ------- Run | Yrd Mat Min Sub Robot Analysis Total 2 | . 2 . . Derelict Logs Recovered 2 | . . 2 . Drone Launches 6 | . . 1 5 Drone Recoveries 3 | . . . 3 Exploration | -11 -10 -10 -10 ------------- Run | Yrd Mat Min Sub Turns Passed 1979 | 109 1240 542 88 Spaces Moved 1093 | 50 688 308 47 Core . | . . . . Treads 494 | . 494 . . Legs 203 | 50 153 . . Wheels 396 | . 41 308 47 Hover . | . . . . Flight . | . . . . Fastest Speed 120 | 120 120 130 145 Average Speed 144 | 120 149 138 145 Slowest Speed 190 | 120 190 145 145 Overloaded Moves . | . . . . Propulsion Burnouts . | . . . . Robots Hopped . | . . . . Cave-ins Triggered . | . . . . Exploration Rate (%) 47 | 4 95 53 39 Regions Visited 3 Branch Regions 2 Pre-discovered Areas 1 | . . 1 . Known Exits Taken 1 | . 1 . . Unknown Exits Taken 2 | 1 . 1 . Scrap Searched 1 | . . . 1 Spaces Dug . | . . . . Terrain Destroyed 47 | . 26 16 5 Melee . | . . . . Projectile . | . . . . AOE 47 | . 26 16 5 Terrain Rammed . | . . . . Walls Destroyed . | . . . . Machines Disabled . | . . . . Actions | -11 -10 -10 -10 --------- Run | Yrd Mat Min Sub Total 1349 | 72 810 401 66 Wait 114 | 1 23 74 16 Move 1090 | 49 687 307 47 Hop . | . . . . Pick Up 15 | 2 12 1 . Fast Attach 3 | 1 1 1 . Attach 2 | 1 1 . . Detach 3 | 1 1 1 . Swap 22 | . 17 4 1 Drop 11 | 1 10 . . Fire 88 | 15 58 13 2 Melee . | . . . . Ram . | . . . . Kick 1 | 1 . . . Crush . | . . . . Escape Stasis . | . . . . Rewire . | . . . . Trap . | . . . . Miscellaneous . | . . . . Route ------- -11/Scrapyard -10/Materials (discovered 4 exits: [*Mat x3] / *Min) -10/Mines (discovered 2 exits: [*Mat] / [*Sub]) -10/Subcaves History --------- Turn | Location | Event 1 | -11/Scrapyard | Discovered new exit (range 3) 110 | -11/Scrapyard | Entered Materials 189 | -10/Materials | Identified exit to Mines 245 | -10/Materials | Destroyed 7 combat bots 313 | -10/Materials | Build established: Mutant 328 | -10/Materials | Discovered new exit (range 9) 475 | -10/Materials | Discovered new exit (range 11) 647 | -10/Materials | Core integrity fell below 50% 821 | -10/Materials | Discovered new exit (range 16) 1015 | -10/Materials | Repaired Imp. Terrain Scanner 1350 | -10/Materials | Entered Mines 1391 | -10/Mines | Learned location of Storage (-7) 1724 | -10/Mines | Discovered new exit (range 8) 1787 | -10/Mines | Discovered new exit (range 12) 1799 | -10/Mines | Learned 4 Materials zone layouts 1803 | -10/Mines | Found the Drone Emporium 1809 | -10/Mines | Found Prototype Device 1809 | -10/Mines | Identified Splice Drone Bay 1892 | -10/Mines | Entered Subcaves 1892 | -10/Subcaves | Accompanied by 1 ally 1978 | -10/Subcaves | Core integrity fell below 20% 1980 | -10/Subcaves | Destroyed by 1Y-NJZ(R) with Subdweller Machine Gun Last Messages --------------- 01904_ 4V-BF2(O) collects matter. 01906_ Subatomizers dissect the Mak. Flight Unit. 01918_ Splice Drone injecting X3-KBS(R)... 01928_ Splice Drone retrieved by Splice Drone Bay. 01934_ Acquired 13 matter. 01945_ Splice Drone released from Splice Drone Bay. 01959_ Acquired 12 matter. 01968_ RIU&3FAOLR|KJCY1DWMC9WDZCW>8HEC60# 01972_ Splice Drone released from Splice Drone Bay. 01975_ Splice Drone sneak attacks. 01975_ Splice Drone injecting WG-ILK(R)... 01975_ Splice Drone retrieved by Splice Drone Bay. 01978_ WG-ILK(R) destroyed. 01979_ Splice Drone released from Splice Drone Bay. 01979_ Splice Drone sneak attacks. 01979_ Splice Drone injecting X3-KBS(R)... 01980_ Splice Drone released from Splice Drone Bay. 01980_ Splice Drone injecting X3-KBS(R)... 01980_ Splice Drone retrieved by Splice Drone Bay. 01980_ UQ-653(R) destroyed. Map ----- +----------------------------------------------------+ | ??????????????# #####??## | | ??????????????## # # #### | | ???????????????## "" # | | ????????????????# #### "& | | ????????????????# ###?# "&# ## | | ????????????????# #"#### ##### ## | | ???????????????##"" "" ### " ##### # | | ???????????????# "" #" # #"# # ### | | ???????????????# ##" #?? | | ???????????????#" ###"" # ## ###?? | | ???????????????##" ##### #######???? | | ???????????????#" ""##### ## #?????????# | | ???????????????##" "" #?##### % #?????????# | | ???????????????## ##?????# #?????????# | | ???????????????# #??????# #?#####???# | | ???????????????### #??????# ### # #???# | | ?????????????????# R #?????### # % ##??? | | ?????????????????## ##??### # #??? | | ?????????????????# #??# # #???? | | ?????????????????## ##??#% %#### #??## | | ?????????????????## ##??# #?# # #?## | | ?????????????????# #??# ##?# # ### | | ?????????????????# #??# ##?# # | | ????????????????## #?## #?# # | | ??????????????### #### ### # | | ??????????????# @n! O | | ??????????????# &%& # # | | ?????????###### [R* # ### # | | ?????????#" # ! ####?### | | ?????????# # % ##??????# | | ?????????# ##<#< ## #?????? | | ?????????# $### ### ##????% ## | | ?????????#"$?# ### ##??? ###? | | ?????????####### ## ########### ##??? | | ???????????????# ###% ##??????###???? | | ???????????????# #### # #????????????? | | ???????????????##### # #????????????? | | ??????????????????# # ##????????????? | | ??????????????????# #????????????? | | ??????????????????# % #????????????? | | ?????????????????## % ##????????????? | | ?????????????????# ## ##?????????????? | | ?????????????????# ## #??????????????? | | ?????????????????### # ##??????????????? | | ???????????????????# # #??????????????? | | ???????????????????## ## ##?????????????? | | ??????????????????### = #?????????????? | | ?????????????????## % #?????????????? | | ????????????????## # # #?????????????? | | ???????????????## ## #??????####?### | +----------------------------------------------------+ Best States ------------- Heat Dissipation 25 Energy Generation 10 Energy Capacity 250 Matter Stores 300 Matter Capacity 300 Sight Range 16 Terrain Scan Range 16 Terrain Scan Density 10 Evasion (%) 55 Recoil Reduction 2 Item Schematics ----------------- None Robot Schematics ------------------ None Fabricated ------------ Nothing Alien Tech Used ----------------- None Achievements -------------- None Challenges ------------ None Game ------ Seed SlugElectronJammer Manual? 0 Play Time 00:20:47 Cumulative 105.9 hours Start 2024.05.29 @ 15:41:06 End 2024.05.29 @ 16:10:06 Sessions 1 Manual Loads 0 Difficulty Rogue Special Mode None Game No. 21 Rogue 15 Adventurer 6 Explorer 0 Win Type - Total 2 Types 2/0/0/0/0/0/0/0/0 Lore% 35 Gallery% 52 Achievement% 42 Wizard Run 0 Options --------- Layout 0 ASCII 0 Keyboard 1 Movement Vi Keybinds 0 Fullscreen 1 Font 24/Smallcaps Map View 113x50 Zoom Use 0% Tactical HUD 1 Map Filters NONE Filters NONE Steam 0 RUN: 8b5fa536-8406-45a8-8579-01bf4d369207